fUST/lending_fUST_20250822
["ID","MTS","AMOUNT","RATE_DAILY","PERIOD"]
[380586736,1755814232949,-480.0,0.00019178,2]
[380586737,1755814232959,-480.0,0.00019178,2]
[380586738,1755814232968,-480.0,0.00019178,2]
[380586739,1755814232977,-480.0,0.00019178,2]
[380586740,1755814232987,-444.31522394,0.00019178,2]
[380586741,1755814232996,-480.0,0.00019178,2]
[380586742,1755814233005,-480.0,0.00019178,2]
[380586743,1755814233015,-460.21875008,0.00019178,2]
[380586744,1755814233024,-480.0,0.00019178,2]
[380586745,1755814233034,-460.85063546,0.00019178,2]
[380586746,1755814233044,-480.0,0.00019178,2]
[380586747,1755814233053,-480.0,0.00019178,2]
[380586748,1755814233063,-480.0,0.00019178,2]
[380586749,1755814233073,-480.0,0.00019178,2]
[380586750,1755814233082,-480.0,0.00019178,2]
[380586751,1755814233092,-463.10003407,0.00019178,2]
[380586752,1755814233101,-480.0,0.00019178,2]
[380586753,1755814233111,-2016.9,0.00019178,2]
[380586754,1755814233120,-480.0,0.00019178,2]
[380586755,1755814233130,-460.92206159,0.00019178,2]
[380586756,1755814233141,-563.8839797,0.00019178,2]
[380586757,1755814233151,-480.0,0.00019178,2]
[380586758,1755814233160,-480.0,0.00019178,2]
[380586759,1755814233170,-460.0,0.00019178,2]
[380586760,1755814233179,-290.55,0.00019178,2]
[380586761,1755814233189,-480.0,0.00019178,2]
[380586762,1755814233198,-480.0,0.00019178,2]
[380586763,1755814233208,-480.0,0.00019178,2]
[380586764,1755814233217,-480.0,0.00019178,2]
[380586765,1755814233226,-480.0,0.00019178,2]
[380586766,1755814233236,-480.0,0.00019178,2]
[380586767,1755814233246,-480.0,0.00019178,2]
[380586768,1755814233255,-460.0,0.00019178,2]
[380586769,1755814233265,-480.0,0.00019178,2]
[380586770,1755814233274,-480.0,0.00019178,2]
[380586771,1755814233284,-480.0,0.00019178,2]
[380586772,1755814233293,-480.0,0.00019178,2]
[380586773,1755814233303,-480.0,0.00019178,2]
[380586774,1755814233313,-480.0,0.00019178,2]
[380586775,1755814233322,-1112.85,0.00019178,2]
[380586776,1755814233332,-480.0,0.00019178,2]
[380586777,1755814233341,-480.0,0.00019178,2]
[380586778,1755814233351,-480.0,0.00019178,2]
[380586779,1755814233360,-480.0,0.00019178,2]
[380586780,1755814233369,-480.0,0.00019178,2]
[380586781,1755814233379,-480.0,0.00019178,2]
[380586782,1755814233390,-1777.19,0.00019178,2]
[380586783,1755814233400,-480.0,0.00019178,2]
[380586784,1755814233409,-461.93697049,0.00019178,2]
[380586785,1755814233418,-780.35,0.00019178,2]
[380586786,1755814233428,-480.0,0.00019178,2]
[380586787,1755814233438,-480.48922689,0.00019178,2]
[380586788,1755814233448,-480.0,0.00019178,2]
[380586789,1755814233457,-618.37,0.00019178,2]
[380586790,1755814233467,-480.0,0.00019178,2]
[380586791,1755814233477,-888.0,0.00019178,2]
[380586792,1755814233487,-480.0,0.00019178,2]
[380586793,1755814233497,-480.0,0.00019178,2]
[380586794,1755814233507,-604.06,0.00019178,2]
[380586795,1755814233516,-480.0,0.00019178,2]
[380586796,1755814233526,-480.0,0.00019178,2]
[380586797,1755814233536,-480.0,0.00019178,2]
[380586798,1755814233546,-480.0,0.00019178,2]
[380586799,1755814233556,-526.43,0.00019178,2]
[380586800,1755814233566,-480.0,0.00019178,2]
[380586801,1755814233576,-245.80174897,0.00019178,2]
[380586802,1755814233586,-500.0,0.00019178,2]
[380586803,1755814233596,-480.2747577,0.00019178,2]
[380586804,1755814233606,-432.901425,0.00019178,2]
[380586805,1755814233616,-460.0,0.00019178,2]
[380586806,1755814233627,-480.0,0.00019178,2]
[380586807,1755814233637,-480.0,0.00019178,2]
[380586808,1755814233647,-480.0,0.00019178,2]
[380586809,1755814233656,-480.0,0.00019178,2]
[380586810,1755814233666,-460.0,0.00019178,2]
[380586811,1755814233676,-480.0,0.00019178,2]
[380586812,1755814233686,-480.0,0.00019178,2]
[380586813,1755814233695,-480.0,0.00019178,2]
[380586814,1755814233704,-46343.24064605,0.00019178,2]
[380586815,1755814233714,-480.0,0.00019452,2]
[380586816,1755814233724,-480.0,0.00019452,2]
[380586817,1755814233733,-480.0,0.00019452,2]
[380586818,1755814233743,-480.0,0.00019452,2]
[380586819,1755814233752,-480.0,0.00019452,2]
[380586820,1755814233761,-593.11403601,0.00019452,2]
[380586821,1755814233771,-480.0,0.00019452,2]
[380586822,1755814233781,-376.25,0.00019452,2]
[380586823,1755814233792,-480.0,0.00019452,2]
[380586824,1755814233802,-480.0,0.00019452,2]
[380586825,1755814233812,-480.0,0.00019452,2]
[380586826,1755814233821,-480.0,0.00019452,2]
[380586827,1755814233831,-496.46340988,0.00019452,2]
[380586828,1755814233840,-480.0,0.00019452,2]
[380586829,1755814233851,-480.0,0.00019452,2]
[380586830,1755814233860,-480.0,0.00019452,2]
[380586831,1755814233871,-480.0,0.00019452,2]
[380586832,1755814233881,-480.0,0.00019452,2]
[380586833,1755814233891,-480.0,0.00019452,2]
[380586834,1755814233901,-392.47,0.00019452,2]
[380586835,1755814233910,-480.0,0.00019452,2]
[380586836,1755814233919,-480.0,0.00019452,2]
[380586837,1755814233929,-480.0,0.00019452,2]
[380586838,1755814233938,-2016.9,0.00019452,2]
[380586839,1755814233947,-480.0,0.00019452,2]
[380586840,1755814233957,-480.0,0.00019452,2]
[380586841,1755814233966,-480.0,0.00019452,2]
[380586842,1755814233976,-480.0,0.00019452,2]
[380586843,1755814233986,-480.0,0.00019452,2]
[380586844,1755814233995,-1112.85,0.00019452,2]
[380586845,1755814234005,-480.0,0.00019452,2]
[380586846,1755814234015,-1777.19,0.00019452,2]
[380586847,1755814234026,-480.0,0.00019452,2]
[380586848,1755814234035,-780.35,0.00019452,2]
[380586849,1755814234044,-480.0,0.00019452,2]
[380586850,1755814234054,-618.37,0.00019452,2]
[380586851,1755814234063,-888.0,0.00019452,2]
[380586852,1755814234073,-480.0,0.00019452,2]
[380586853,1755814234082,-604.06,0.00019452,2]
[380586854,1755814234091,-480.0,0.00019452,2]
[380586855,1755814234102,-480.0,0.00019452,2]
[380586856,1755814234111,-526.43,0.00019452,2]
[380586857,1755814234121,-480.0,0.00019452,2]
[380586858,1755814234130,-480.0,0.00019452,2]
[380586859,1755814234139,-480.0,0.00019452,2]
[380586860,1755814234148,-480.0,0.00019452,2]
[380586861,1755814234158,-480.0,0.00019452,2]
[380586862,1755814234168,-365.89,0.00019716,3]
[380586863,1755814234177,-548.85,0.00019716,3]
[380586864,1755814234186,-480.0,0.00019726,2]
[380586865,1755814234196,-460.0,0.00019726,2]
[380586866,1755814234206,-480.0,0.00019726,2]
[380586867,1755814234215,-480.0,0.00019726,2]
[380586868,1755814234225,-480.0,0.00019726,2]
[380586869,1755814234234,-480.0,0.00019726,2]
[380586870,1755814234244,-480.0,0.00019726,2]
[380586871,1755814234254,-480.0,0.00019726,2]
[380586872,1755814234263,-603.02915429,0.00019726,2]
[380586873,1755814234273,-480.0,0.00019726,2]
[380586874,1755814234283,-480.0,0.00019726,2]
[380586875,1755814234292,-480.0,0.00019726,2]
[380586876,1755814234301,-480.0,0.00019726,2]
[380586877,1755814234311,-480.0,0.00019726,2]
[380586878,1755814234320,-495.60783433,0.00019726,2]
[380586879,1755814234330,-480.0,0.00019726,2]
[380586880,1755814234339,-480.0,0.00019726,2]
[380586881,1755814234349,-1625.37001122,0.00019726,2]
[380586908,1755814238004,-480.0,0.00019178,2]
[380586910,1755814238014,-480.0,0.00019452,2]
[380586912,1755814238024,-391.52998878,0.00019726,2]
[380586914,1755814238033,-480.0,0.00019726,2]
[380586916,1755814238043,-480.0,0.00019726,2]
[380586918,1755814238052,-480.0,0.00019726,2]
[380586920,1755814238061,-1112.85,0.00019726,2]
[380586922,1755814238070,-480.0,0.00019726,2]
[380586924,1755814238079,-1777.19,0.00019726,2]
[380586926,1755814238089,-480.0,0.00019726,2]
[380586928,1755814238105,-780.35,0.00019726,2]
[380586930,1755814238114,-480.0,0.00019726,2]
[380586932,1755814238124,-618.37,0.00019726,2]
[380586934,1755814238132,-888.0,0.00019726,2]
[380586936,1755814238142,-480.0,0.00019726,2]
[380586938,1755814238151,-604.06,0.00019726,2]
[380586940,1755814238160,-480.0,0.00019726,2]
[380586942,1755814238169,-480.0,0.00019726,2]
[380586944,1755814238178,-607.38,0.00019726,2]
[380586946,1755814238188,-526.43,0.00019726,2]
[380586948,1755814238197,-480.0,0.00019726,2]
[380586950,1755814238207,-480.0,0.00019726,2]
[380586952,1755814238216,-480.0,0.00019726,2]
[380586954,1755814238225,-480.0,0.00019726,2]
[380586956,1755814238235,-332.07475279,0.00019726,2]
[380586958,1755814238244,-500.0,0.00019878,2]
[380586960,1755814238253,-500.0,0.00019878,2]
[380586962,1755814238263,-500.0,0.00019878,2]
[380586963,1755814238274,-500.0,0.00019878,2]
[380586966,1755814238284,-500.0,0.00019878,2]
[380586967,1755814238293,-500.0,0.00019878,2]
[380586970,1755814238304,-500.0,0.00019878,2]
[380586971,1755814238314,-500.0,0.00019878,2]
[380586974,1755814238324,-500.0,0.00019878,2]
[380586975,1755814238333,-480.0,0.00019899,2]
[380586978,1755814238344,-480.0,0.00019899,2]
[380586980,1755814238354,-480.0,0.00019899,2]
[380586982,1755814238363,-480.0,0.00019899,2]
[380586983,1755814238373,-480.0,0.00019899,2]
[380586986,1755814238384,-480.0,0.00019899,2]
[380586988,1755814238393,-323.83909231,0.00019899,2]
[380586990,1755814238403,-480.0,0.00019899,2]
[380586991,1755814238413,-480.0,0.00019899,2]
[380586994,1755814238423,-480.0,0.00019899,2]
[380586996,1755814238432,-480.0,0.00019899,2]
[380586998,1755814238442,-441.63675354,0.00019899,2]
[380587000,1755814238451,-480.0,0.00019899,2]
[380587001,1755814238460,-6813.36811797,0.000199,2]
[380587003,1755814238471,-182.94,0.0001999,3]
[380587006,1755814238481,-480.0,0.0002,2]
[380587008,1755814238491,-480.0,0.0002,2]
[380587010,1755814238503,-480.0,0.0002,2]
[380587012,1755814238514,-480.0,0.0002,2]
[380587013,1755814238523,-416.83204868,0.0002,2]
[380587015,1755814238533,-480.0,0.0002,2]
[380587018,1755814238543,-480.0,0.0002,2]
[380587020,1755814238552,-480.0,0.0002,2]
[380587021,1755814238562,-480.0,0.0002,2]
[380587023,1755814238571,-480.0,0.0002,2]
[380587025,1755814238581,-2016.9,0.0002,2]
[380587027,1755814238590,-480.0,0.0002,2]
[380587029,1755814238599,-480.0,0.0002,2]
[380587031,1755814238609,-480.0,0.0002,2]
[380587033,1755814238618,-1112.85,0.0002,2]
[380587035,1755814238627,-480.0,0.0002,2]
[380587037,1755814238636,-1777.19,0.0002,2]
[380587039,1755814238646,-480.0,0.0002,2]
[380587041,1755814238655,-780.35,0.0002,2]
[380587043,1755814238665,-572.48345732,0.0002,2]
[380587045,1755814238674,-618.37,0.0002,2]
[380587047,1755814238683,-888.0,0.0002,2]
[380587049,1755814238692,-480.0,0.0002,2]
[380587051,1755814238701,-604.06,0.0002,2]
[380587053,1755814238710,-372.36564164,0.0002,2]
[380587055,1755814238719,-480.0,0.0002,2]
[380587057,1755814238728,-526.43,0.0002,2]
[380587059,1755814238738,-480.0,0.0002,2]
[380587061,1755814238747,-480.0,0.0002,2]
[380587063,1755814238756,-480.0,0.0002,2]
[380587065,1755814238766,-480.0,0.0002,2]
[380587067,1755814238775,-480.0,0.00020273,2]
[380587069,1755814238787,-480.0,0.00020273,2]
[380587071,1755814238802,-450.02464523,0.00020273,2]
[380587074,1755814238812,-480.0,0.00020273,2]
[380587075,1755814238821,-480.0,0.00020273,2]
[380587077,1755814238832,-480.0,0.00020273,2]
[380587091,1755814238934,-480.0,0.00020273,2]
[380587094,1755814238967,-2016.9,0.00020273,2]
[380587096,1755814238977,-480.0,0.00020273,2]
[380587098,1755814238986,-204.35,0.00020273,2]
[380587100,1755814238995,-480.0,0.00020273,2]
[380587102,1755814239005,-1112.85,0.00020273,2]
[380587104,1755814239014,-480.0,0.00020273,2]
[380587105,1755814239024,-480.0,0.00020273,2]
[380587108,1755814239034,-1777.19,0.00020273,2]
[380587109,1755814239044,-780.35,0.00020273,2]
[380587112,1755814239053,-618.37,0.00020273,2]
[380587114,1755814239063,-888.0,0.00020273,2]
[380587116,1755814239073,-480.0,0.00020273,2]
[380587118,1755814239082,-604.06,0.00020273,2]
[380587120,1755814239092,-480.0,0.00020273,2]
[380587121,1755814239103,-526.43,0.00020273,2]
[380587124,1755814239117,-480.0,0.00020273,2]
[380587126,1755814239129,-480.0,0.00020273,2]
[380587127,1755814239149,-480.0,0.00020273,2]
[380587129,1755814239161,-480.0,0.00020273,2]
[380587132,1755814239170,-500.0,0.00020426,2]
[380587134,1755814239180,-1000.0,0.00020426,2]
[380587136,1755814239190,-500.0,0.00020426,2]
[380587138,1755814239199,-500.0,0.00020426,2]
[380587140,1755814239209,-1100.0,0.00020426,2]
[380587142,1755814239218,-500.0,0.00020426,2]
[380587144,1755814239230,-1000.0,0.00020426,2]
[380587146,1755814239239,-1000.0,0.00020426,2]
[380587148,1755814239248,-1000.0,0.00020426,2]
[380587149,1755814239257,-480.0,0.00020547,2]
[380587152,1755814239269,-480.0,0.00020547,2]
[380587154,1755814239280,-480.0,0.00020547,2]
[380587157,1755814239289,-480.0,0.00020547,2]
[380587158,1755814239298,-480.0,0.00020547,2]
[380587161,1755814239309,-480.0,0.00020547,2]
[380587162,1755814239320,-2016.9,0.00020547,2]
[380587164,1755814239330,-480.0,0.00020547,2]
[380587167,1755814239340,-480.0,0.00020547,2]
[380587168,1755814239351,-1112.85,0.00020547,2]
[380587171,1755814239363,-480.0,0.00020547,2]
[380587172,1755814239372,-480.0,0.00020547,2]
[380587174,1755814239382,-1777.19,0.00020547,2]
[380587177,1755814239392,-780.35,0.00020547,2]
[380587179,1755814239402,-618.37,0.00020547,2]
[380587180,1755814239413,-888.0,0.00020547,2]
[380587183,1755814239423,-480.0,0.00020547,2]
[380587185,1755814239434,-604.06,0.00020547,2]
[380587187,1755814239447,-480.0,0.00020547,2]
[380587189,1755814239456,-526.43,0.00020547,2]
[380587191,1755814239466,-480.0,0.00020547,2]
[380587193,1755814239476,-480.0,0.00020547,2]
[380587195,1755814239485,-480.0,0.00020547,2]
[380587196,1755814239495,-480.0,0.00020547,2]
[380587199,1755814239504,-500.0,0.00020548,2]
[380587200,1755814239514,-627.0,0.00020548,2]
[380587203,1755814239524,-160.0,0.00020588,2]
[380587204,1755814239534,-232.28399145,0.00020588,2]
[380587207,1755814239544,-160.0,0.00020588,2]
[380587208,1755814239553,-216.95272161,0.00020588,2]
[380587211,1755814239564,-376.00439007,0.00020588,2]
[380587213,1755814239573,-844.19128999,0.00020588,2]
[380587215,1755814239583,-160.0,0.00020588,2]
[380587217,1755814239592,-776.88720848,0.00020758,2]
[380587219,1755814239602,-480.0,0.0002082,2]
[380587221,1755814239613,-475.00019703,0.0002082,2]
[380587223,1755814239623,-480.0,0.0002082,2]
[380587225,1755814239633,-480.0,0.0002082,2]
[380587227,1755814239643,-480.0,0.0002082,2]
[380587229,1755814239652,-701.76,0.0002082,2]
[380587231,1755814239662,-719.35,0.0002082,2]
[380587233,1755814239671,-480.0,0.00020821,2]
[380587235,1755814239682,-480.0,0.00020821,2]
[380587237,1755814239691,-480.0,0.00020821,2]
[380587239,1755814239701,-480.0,0.00020821,2]
[380587241,1755814239711,-480.0,0.00020821,2]
[380587243,1755814239721,-480.0,0.00020821,2]
[380587245,1755814239731,-2016.9,0.00020821,2]
[380587247,1755814239740,-535.99146876,0.00020821,2]
[380587249,1755814239750,-480.0,0.00020821,2]
[380587251,1755814239759,-1112.85,0.00020821,2]
[380587253,1755814239768,-480.0,0.00020821,2]
[380587255,1755814239778,-480.0,0.00020821,2]
[380587257,1755814239789,-1777.19,0.00020821,2]
[380587259,1755814239800,-780.35,0.00020821,2]
[380587261,1755814239809,-618.37,0.00020821,2]
[380587263,1755814239819,-888.0,0.00020821,2]
[380587265,1755814239828,-480.0,0.00020821,2]
[380587267,1755814239838,-604.06,0.00020821,2]
[380587269,1755814239848,-480.0,0.00020821,2]
[380587271,1755814239857,-526.43,0.00020821,2]
[380587273,1755814239865,-480.0,0.00020821,2]
[380587276,1755814239876,-480.0,0.00020821,2]
[380587278,1755814239886,-480.0,0.00020821,2]
[380587280,1755814239895,-480.0,0.00020821,2]
[380587282,1755814239905,-500.0,0.00020822,2]
[380587284,1755814239914,-627.0,0.00020822,2]
[380587285,1755814239923,-182.74543599,0.00020822,2]
[380587287,1755814239932,-6813.36811788,0.00020835,2]
[380587290,1755814239942,-967.0,0.00020898,2]
[380587292,1755814239952,-420.0,0.00020899,2]
[380587294,1755814239961,-1500.0,0.00020974,2]
[380587296,1755814239970,-1500.0,0.00020974,2]
[380587297,1755814239980,-1500.0,0.00020974,2]
[380587300,1755814239990,-1500.0,0.00020974,2]
[380587302,1755814240000,-151.0,0.00021,4]
[380587304,1755814240010,-1680.0,0.00021,2]
[380587306,1755814240020,-160.0,0.00021,2]
[380587307,1755814240029,-731.78,0.00021086,3]
[380587310,1755814240039,-480.0,0.00021094,2]
[380587312,1755814240049,-480.0,0.00021094,2]
[380587314,1755814240060,-701.76,0.00021094,2]
[380587316,1755814240069,-719.35,0.00021094,2]
[380587318,1755814240079,-480.0,0.00021095,2]
[380587320,1755814240088,-480.0,0.00021095,2]
[380587322,1755814240098,-480.0,0.00021095,2]
[380587324,1755814240107,-480.0,0.00021095,2]
[380587326,1755814240117,-480.0,0.00021095,2]
[380587328,1755814240126,-480.0,0.00021095,2]
[380587330,1755814240135,-2016.9,0.00021095,2]
[380587332,1755814240145,-480.0,0.00021095,2]
[380587334,1755814240155,-1112.85,0.00021095,2]
[380587336,1755814240164,-521.84221016,0.00021095,2]
[380587338,1755814240173,-480.0,0.00021095,2]
[380587340,1755814240182,-1777.19,0.00021095,2]
[380587342,1755814240191,-780.35,0.00021095,2]
[380587344,1755814240201,-618.37,0.00021095,2]
[380587346,1755814240210,-888.0,0.00021095,2]
[380587348,1755814240219,-480.0,0.00021095,2]
[380587350,1755814240229,-604.06,0.00021095,2]
[380587352,1755814240238,-480.0,0.00021095,2]
[380587354,1755814240247,-526.43,0.00021095,2]
[380587356,1755814240257,-480.0,0.00021095,2]
[380587358,1755814240267,-480.0,0.00021095,2]
[380587360,1755814240276,-480.0,0.00021095,2]
[380587362,1755814240286,-376.63873153,0.00021096,2]
[380587364,1755814240296,-627.0,0.00021096,2]
[380587366,1755814240306,-326.79610947,0.00021146,2]
[380587368,1755814240316,-6933.28964714,0.00021268,2]
[380587370,1755814240325,-365.88,0.0002136,3]
[380587372,1755814240335,-480.0,0.00021368,2]
[380587374,1755814240345,-480.0,0.00021368,2]
[380587376,1755814240354,-701.76,0.00021368,2]
[380587378,1755814240363,-719.35,0.00021368,2]
[380587380,1755814240373,-480.0,0.00021369,2]
[380587382,1755814240383,-480.0,0.00021369,2]
[380587384,1755814240393,-480.0,0.00021369,2]
[380587386,1755814240403,-480.0,0.00021369,2]
[380587388,1755814240413,-480.0,0.00021369,2]
[380587390,1755814240422,-480.0,0.00021369,2]
[380587392,1755814240432,-2016.9,0.00021369,2]
[380587394,1755814240442,-480.0,0.00021369,2]
[380587396,1755814240452,-1112.85,0.00021369,2]
[380587398,1755814240462,-480.0,0.00021369,2]
[380587400,1755814240471,-1777.19,0.00021369,2]
[380587402,1755814240481,-780.35,0.00021369,2]
[380587404,1755814240491,-618.37,0.00021369,2]
[380587406,1755814240500,-888.0,0.00021369,2]
[380587408,1755814240510,-480.0,0.00021369,2]
[380587410,1755814240519,-604.06,0.00021369,2]
[380587412,1755814240529,-480.0,0.00021369,2]
[380587414,1755814240539,-526.43,0.00021369,2]
[380587416,1755814240548,-480.0,0.00021369,2]
[380587418,1755814240560,-480.0,0.00021369,2]
[380587420,1755814240569,-480.0,0.00021369,2]
[380587422,1755814240579,-627.0,0.0002137,2]
[380587424,1755814240589,-151.0,0.000215,3]
[380587426,1755814240598,-2000.0,0.00021522,2]
[380587428,1755814240608,-938.52392881,0.00021522,2]
[380587430,1755814240617,-2000.0,0.00021522,2]
[380587432,1755814240627,-2000.0,0.00021522,2]
[380587434,1755814240636,-260.0,0.00021548,2]
[380587436,1755814240647,-1000.0,0.00021612,2]
[380587438,1755814240657,-480.0,0.00021642,2]
[380587440,1755814240666,-480.0,0.00021642,2]
[380587442,1755814240675,-701.76,0.00021642,2]
[380587444,1755814240685,-719.35,0.00021642,2]
[380587446,1755814240694,-480.0,0.00021643,2]
[380587448,1755814240703,-480.0,0.00021643,2]
[380587450,1755814240713,-480.0,0.00021643,2]
[380587452,1755814240722,-467.83,0.00021643,2]
[380587454,1755814240731,-480.0,0.00021643,2]
[380587457,1755814240741,-480.0,0.00021643,2]
[380587459,1755814240750,-2016.9,0.00021643,2]
[380587461,1755814240759,-480.0,0.00021643,2]
[380587463,1755814240770,-1112.85,0.00021643,2]
[380587465,1755814240779,-480.0,0.00021643,2]
[380587467,1755814240792,-1777.19,0.00021643,2]
[380587469,1755814240803,-780.35,0.00021643,2]
[380587471,1755814240813,-618.37,0.00021643,2]
[380587473,1755814240823,-888.0,0.00021643,2]
[380587474,1755814240834,-480.0,0.00021643,2]
[380587476,1755814240844,-604.06,0.00021643,2]
[380587479,1755814240853,-480.0,0.00021643,2]
[380587480,1755814240863,-526.43,0.00021643,2]
[380587482,1755814240873,-480.0,0.00021643,2]
[380587485,1755814240885,-480.0,0.00021643,2]
[380587487,1755814240895,-480.0,0.00021643,2]
[380587489,1755814240906,-627.0,0.00021644,2]
[380587490,1755814240917,-776.88720845,0.00021769,2]
[380587493,1755814240927,-6813.36811788,0.00021771,2]
[380587495,1755814240937,-5000.0,0.00021779,2]
[380587497,1755814240947,-150.0,0.000219,2]
[380587499,1755814240956,-480.0,0.00021916,2]
[380587501,1755814240966,-480.0,0.00021916,2]
[380587503,1755814241020,-701.76,0.00021916,2]
[380587506,1755814241029,-719.35,0.00021916,2]
[380587507,1755814241039,-480.0,0.00021917,2]
[380587509,1755814241049,-480.0,0.00021917,2]
[380587512,1755814241058,-480.0,0.00021917,2]
[380587514,1755814241068,-480.0,0.00021917,2]
[380587516,1755814241077,-500.0,0.00021917,2]
[380587518,1755814241086,-500.0,0.00021917,2]
[380587520,1755814241095,-500.0,0.00021917,2]
[380587522,1755814241105,-500.0,0.00021917,2]
[380587524,1755814241114,-500.0,0.00021917,2]
[380587526,1755814241124,-500.0,0.00021917,2]
[380587527,1755814241133,-500.0,0.00021917,2]
[380587529,1755814241142,-500.0,0.00021917,2]
[380587531,1755814241151,-500.0,0.00021917,2]
[380587533,1755814241161,-395.75782404,0.00021917,2]
[380587535,1755814241170,-480.0,0.00021917,2]
[380587537,1755814241179,-2016.9,0.00021917,2]
[380587539,1755814241188,-8748.7,0.00021917,2]
[380587541,1755814241198,-480.0,0.00021917,2]
[380587543,1755814241207,-1112.85,0.00021917,2]
[380587545,1755814241217,-480.0,0.00021917,2]
[380587547,1755814241226,-1777.19,0.00021917,2]
[380587550,1755814241236,-780.35,0.00021917,2]
[380587552,1755814241245,-618.37,0.00021917,2]
[380587554,1755814241254,-888.0,0.00021917,2]
[380587556,1755814241263,-480.0,0.00021917,2]
[380587557,1755814241272,-604.06,0.00021917,2]
[380587560,1755814241281,-480.0,0.00021917,2]
[380587561,1755814241291,-526.43,0.00021917,2]
[380587563,1755814241300,-480.0,0.00021917,2]
[380587565,1755814241309,-480.0,0.00021917,2]
[380587568,1755814241319,-480.0,0.00021917,2]
[380587569,1755814241329,-200.0,0.00021918,2]
[380587570,1755814241338,-627.0,0.00021918,2]
[380587571,1755814241348,-2276.2,0.00022,7]
[380587572,1755814241357,-407.73,0.00022,7]
[380587573,1755814241366,-5074.39,0.00022,7]
[380587574,1755814241376,-151.0,0.00022,3]
[380587575,1755814241385,-164.0,0.00022,2]
[380587576,1755814241394,-179.0,0.00022,2]
[380587577,1755814241403,-2500.0,0.0002207,2]
[380587578,1755814241413,-2500.0,0.0002207,2]
[380587579,1755814241450,-1500.0,0.0002207,2]
[380587580,1755814241460,-360.0,0.00022096,2]
[380587581,1755814241469,-495.65,0.000221,2]
[380587582,1755814241479,-500.0,0.00022179,2]
[380587583,1755814241489,-500.0,0.00022179,2]
[380587584,1755814241498,-480.0,0.0002219,3]
[380587585,1755814241508,-480.0,0.0002219,3]
[380587586,1755814241517,-701.76,0.0002219,3]
[380587587,1755814241527,-719.35,0.0002219,3]
[380587588,1755814241537,-480.0,0.00022191,3]
[380587589,1755814241547,-480.0,0.00022191,3]
[380587590,1755814241556,-480.0,0.00022191,3]
[380587591,1755814241566,-480.0,0.00022191,3]
[380587592,1755814241576,-12690.45384448,0.00022191,3]
[380587593,1755814241585,-480.0,0.00022191,3]
[380587594,1755814241595,-2016.9,0.00022191,3]
[380587596,1755814241604,-215.86710461,0.00022191,3]
[380587597,1755814241613,-480.0,0.00022191,3]
[380587598,1755814241622,-592.78176355,0.00022191,3]
[380587620,1755814241830,-21.56882675,0.00022191,3]
[380588166,1755814247425,-498.4994097,0.00022191,3]